fUSD/lending_fUSD_20251210
["ID","MTS","AMOUNT","RATE_DAILY","PERIOD"]
[398047126,1765336254319,-500.0,0.00015997,2]
[398047127,1765336254328,-500.0,0.00015997,2]
[398047128,1765336254337,-500.0,0.00015997,2]
[398047129,1765336254347,-500.0,0.00015997,2]
[398047130,1765336254356,-500.0,0.00015997,2]
[398047131,1765336254365,-500.0,0.00015997,2]
[398047132,1765336254375,-500.0,0.00015997,2]
[398047133,1765336254384,-509.79013179,0.00015997,2]
[398047134,1765336254394,-153.89422174,0.00015997,2]
[398047135,1765336254403,-500.0,0.00015997,2]
[398047136,1765336254412,-437.47408909,0.00015998,2]
[398047137,1765336254421,-500.0,0.00015998,2]
[398047138,1765336254430,-1000.0,0.00015998,2]
[398047139,1765336254439,-1000.0,0.00015998,3]
[398047140,1765336254449,-500.0,0.00015999,2]
[398047141,1765336254458,-500.0,0.00015999,2]
[398047142,1765336254467,-500.0,0.00015999,2]
[398047143,1765336254476,-509.22748173,0.00015999,2]
[398047144,1765336254485,-151.0,0.00015999,2]
[398047145,1765336254494,-348.6331076,0.00015999,2]
[398047146,1765336254503,-1000.0,0.00015999,3]
[398047147,1765336254512,-7180.80404121,0.00016,4]
[398047148,1765336255102,-324.4526,0.00016,4]
[398047149,1765336255128,-356.90157413,0.00016,4]
[398047150,1765336255645,-256.70246244,0.00015796,2]
[398047151,1765336255655,-243.61141169,0.00016,4]
[398047152,1765336255666,-2231.580632,0.00016,4]
[398047153,1765336255679,-384.996,0.00016,4]
[398047154,1765336255787,-500.0,0.00015796,2]
[398047155,1765336255797,-152.60053642,0.00016,4]
[398047156,1765336256768,-440.807,0.00015795,2]
[398047157,1765336256787,-62.36239991,0.00015795,2]
[398047158,1765336256796,-449.4335793,0.00015796,2]
[398047159,1765336287667,10000.0,0.00022,30]
[398047168,1765336388161,2954.269746,7.945e-05,2]
[398047171,1765336836188,5990.31,0.00025,120]
[398047177,1765337214109,-200.0,0.00010959,2]
[398047178,1765337214130,-501.0,0.00013479,2]
[398047179,1765337214157,-770.38,0.00013699,2]
[398047180,1765337214177,-263.0,0.00013699,2]
[398047181,1765337214200,-166.66,0.00014315,2]
[398047182,1765337214222,-763.89454098,0.00014601,3]
[398047183,1765337288218,1891.203574,7.945e-05,2]
[398047193,1765337432082,-235.10545902,0.00014601,3]
[398047194,1765337432091,-250.0,0.00014609,2]
[398047195,1765337432100,-300.0,0.00014609,2]
[398047196,1765337432110,-107.60454098,0.00014616,2]
[398047197,1765337432164,-59.05545902,0.00014616,2]
[398047198,1765337432174,-150.0,0.00014641,2]
[398047199,1765337432190,-250.0,0.00014754,2]
[398047200,1765337432199,-3.05519811,0.00014754,2]
[398047201,1765337432210,-296.94480189,0.00014754,2]
[398047202,1765337432219,-300.0,0.00014754,2]
[398047203,1765337432228,-309.2840246,0.00014754,2]
[398047204,1765337432237,-1200.0,0.00014863,2]
[398047205,1765337432246,-1000.0,0.00014864,2]
[398047206,1765337432256,-166.66,0.00014917,2]
[398047207,1765337432265,-166.66,0.00015219,2]
[398047208,1765337432274,-1000.0,0.00015251,2]
[398047209,1765337432283,-2119.1,0.000153,2]
[398047210,1765337432291,-300.0,0.00015398,2]
[398047211,1765337432300,-300.0,0.00015398,2]
[398047212,1765337432309,-1000.0,0.00015399,3]
[398047213,1765337432319,-186.92,0.00015427,2]
[398047215,1765337432328,-885.0,0.00015433,2]
[398047217,1765337432338,-166.66,0.0001552,2]
[398047218,1765337432347,-504.16869295,0.00015586,2]
[398047219,1765337432356,-533.88981491,0.00015586,2]
[398047220,1765337432365,-300.0,0.00015593,2]
[398047221,1765337432375,-10110.7584,0.00015594,2]
[398047222,1765337432385,-6679.449,0.00015594,2]
[398047223,1765337432394,-930.9034,0.00015594,2]
[398047224,1765337432404,-5438.1044205,0.00015594,2]
[398047225,1765337432414,-1000.0,0.00015595,2]
[398047226,1765337432424,-541.0,0.00015596,2]
[398047227,1765337432433,-282.98146698,0.00015596,2]
[398047228,1765337432443,-568.118,0.0001567,2]
[398047229,1765337432452,-1934.02807946,0.00015679,2]
[398047230,1765337432462,-500.0,0.00015693,2]
[398047231,1765337432471,-500.0,0.00015693,2]
[398047232,1765337432481,-500.0,0.00015693,2]
[398047233,1765337432490,-500.0,0.00015693,2]
[398047234,1765337432501,-500.0,0.00015693,2]
[398047235,1765337432511,-500.0,0.00015693,2]
[398047236,1765337432520,-500.0,0.00015693,2]
[398047237,1765337432530,-578.68900206,0.00015693,2]
[398047238,1765337432540,-500.0,0.00015693,2]
[398047239,1765337432550,-934.55,0.00015693,2]
[398047240,1765337432559,-3878.98,0.00015693,2]
[398047241,1765337432569,-842.62,0.00015693,2]
[398047242,1765337432578,-562.77676756,0.00015693,2]
[398047243,1765337432587,-970.06,0.00015693,2]
[398047244,1765337432596,-500.0,0.00015693,2]
[398047245,1765337432606,-304.13704072,0.00015693,2]
[398047246,1765337432615,-500.0,0.00015693,2]
[398047247,1765337432624,-500.0,0.00015693,2]
[398047248,1765337432633,-877.85,0.00015693,2]
[398047249,1765337432642,-500.0,0.00015693,2]
[398047250,1765337432651,-500.0,0.00015693,2]
[398047251,1765337432660,-507.73,0.00015693,2]
[398047252,1765337432669,-815.45,0.00015693,2]
[398047253,1765337432679,-500.0,0.00015693,2]
[398047254,1765337432689,-500.0,0.00015693,2]
[398047255,1765337432698,-500.0,0.00015693,2]
[398047256,1765337432707,-500.0,0.00015693,2]
[398047257,1765337432721,-500.0,0.00015693,2]
[398047258,1765337432730,-575.32102111,0.00015693,2]
[398047259,1765337432740,-572.12,0.00015693,2]
[398047260,1765337432749,-500.0,0.00015693,2]
[398047261,1765337432759,-433.30073946,0.00015693,2]
[398047262,1765337432772,-66.69926054,0.00015693,2]
[398047263,1765337432781,-714.26,0.00015693,2]
[398047264,1765337432791,-662.51,0.00015693,2]
[398047265,1765337432801,-500.0,0.00015693,2]
[398047266,1765337432811,-500.0,0.00015693,2]
[398047267,1765337432820,-500.0,0.00015693,2]
[398047268,1765337432830,-300.0,0.00015693,2]
[398047269,1765337432839,-837.92,0.00015693,2]
[398047270,1765337432848,-1789.73,0.00015693,2]
[398047271,1765337432858,-500.0,0.00015693,2]
[398047272,1765337432867,-500.0,0.00015693,2]
[398047273,1765337432876,-500.0,0.00015693,2]
[398047274,1765337432885,-500.0,0.00015693,2]
[398047275,1765337432895,-509.02,0.00015693,2]
[398047276,1765337432904,-500.0,0.00015693,2]
[398047277,1765337432913,-643.08,0.00015693,2]
[398047278,1765337432923,-500.0,0.00015693,2]
[398047279,1765337432932,-711.78,0.00015693,2]
[398047280,1765337432941,-733.15,0.00015693,2]
[398047281,1765337432950,-500.0,0.00015693,2]
[398047282,1765337432959,-533.38,0.00015693,2]
[398047283,1765337432968,-500.0,0.00015693,2]
[398047284,1765337432978,-755.21744922,0.00015693,2]
[398047285,1765337432994,-70.46255078,0.00015693,2]
[398047286,1765337433005,-500.0,0.00015693,2]
[398047287,1765337433014,-815.62,0.00015693,2]
[398047288,1765337433023,-765.24,0.00015693,2]
[398047289,1765337433032,-500.0,0.00015693,2]
[398047290,1765337433041,-500.0,0.00015693,2]
[398047291,1765337433051,-347.36583315,0.00015693,2]
[398047323,1765337438365,-152.63416685,0.00015693,2]
[398047324,1765337438376,-610.75,0.00015693,2]
[398047325,1765337438386,-500.0,0.00015693,2]
[398047326,1765337438397,-754.45,0.00015693,2]
[398047327,1765337438407,-534.37,0.00015693,2]
[398047328,1765337438417,-205.99627282,0.00015693,2]
[398047329,1765337438449,-561.63372718,0.00015693,2]
[398047330,1765337438459,-965.89,0.00015693,2]
[398047331,1765337438469,-924.66301698,0.00015693,2]
[398047334,1765337438523,-178.65698302,0.00015693,2]
[398047335,1765337438533,-864.19851698,0.00015693,2]
[398047336,1765337438544,-374.34148302,0.00015693,2]
[398047337,1765337438554,-1081.64,0.00015693,2]
[398047338,1765337438563,-675.02,0.00015693,2]
[398047339,1765337438573,-894.17,0.00015693,2]
[398047340,1765337438582,-500.0,0.00015693,2]
[398047341,1765337438592,-841.07,0.00015693,2]
[398047342,1765337438601,-500.0,0.00015693,2]
[398047343,1765337438610,-816.27,0.00015693,2]
[398047344,1765337438619,-559.15,0.00015693,2]
[398047345,1765337438628,-898.22,0.00015693,2]
[398047346,1765337438638,-940.86,0.00015693,2]
[398047347,1765337438646,-500.0,0.00015693,2]
[398047348,1765337438656,-500.0,0.00015693,2]
[398047349,1765337438664,-949.81,0.00015693,2]
[398047350,1765337438673,-500.0,0.00015693,2]
[398047351,1765337438683,-500.0,0.00015693,2]
[398047352,1765337438692,-500.0,0.00015693,2]
[398047353,1765337438701,-1209.02,0.00015693,2]
[398047354,1765337438710,-2619.53,0.00015693,2]
[398047355,1765337438723,-500.0,0.00015693,2]
[398047356,1765337438732,-530.64,0.00015693,2]
[398047357,1765337438742,-500.0,0.00015693,2]
[398047358,1765337438752,-500.0,0.00015693,2]
[398047359,1765337438763,-608.59753258,0.00015693,2]
[398047360,1765337438772,-501.82792264,0.00015693,2]
[398047361,1765337438782,-500.0,0.00015693,2]
[398047362,1765337438792,-500.0,0.00015693,2]
[398047364,1765337438800,-500.0,0.00015693,2]
[398047365,1765337438809,-605.76,0.00015693,2]
[398047366,1765337438818,-500.0,0.00015693,2]
[398047367,1765337438828,-500.0,0.00015693,2]
[398047369,1765337438839,-500.0,0.00015693,2]
[398047371,1765337438849,-500.0,0.00015693,2]
[398047373,1765337438858,-500.0,0.00015693,2]
[398047375,1765337438869,-500.0,0.00015693,2]
[398047377,1765337438881,-500.0,0.00015693,2]
[398047379,1765337438891,-500.0,0.00015693,2]
[398047381,1765337438901,-565.36,0.00015693,2]
[398047383,1765337438911,-500.25624242,0.00015693,2]
[398047385,1765337438921,-500.0,0.00015693,2]
[398047387,1765337438932,-500.0,0.00015693,2]
[398047389,1765337438942,-500.0,0.00015693,2]
[398047390,1765337438952,-500.0,0.00015693,2]
[398047391,1765337438962,-500.0,0.00015693,2]
[398047392,1765337438972,-150.0,0.00015693,2]
[398047393,1765337438982,-500.0,0.00015693,2]
[398047394,1765337438993,-500.0,0.00015693,2]
[398047395,1765337439003,-500.0,0.00015693,2]
[398047396,1765337439013,-500.0,0.00015693,2]
[398047397,1765337439023,-500.0,0.00015693,2]
[398047398,1765337439033,-500.0,0.00015693,2]
[398047399,1765337439044,-500.0,0.00015693,2]
[398047400,1765337439053,-500.0,0.00015693,2]
[398047401,1765337439321,-978.77,0.00015693,2]
[398047402,1765337439333,-646.08,0.00015693,2]
[398047403,1765337439343,-500.0,0.00015693,2]
[398047404,1765337439351,-500.0,0.00015693,2]
[398047405,1765337439361,-500.0,0.00015693,2]
[398047406,1765337439370,-500.0,0.00015693,2]
[398047407,1765337439380,-500.0,0.00015693,2]
[398047408,1765337439389,-500.0,0.00015693,2]
[398047409,1765337439398,-500.0,0.00015693,2]
[398047410,1765337439407,-500.0,0.00015693,2]
[398047411,1765337439416,-505.88551923,0.00015693,2]
[398047412,1765337439426,-500.0,0.00015693,2]
[398047413,1765337439436,-500.0,0.00015693,2]
[398047414,1765337439446,-500.0,0.00015693,2]
[398047415,1765337439456,-500.0,0.00015693,2]
[398047416,1765337439465,-500.0,0.00015694,2]
[398047417,1765337439474,-503.30980104,0.00015694,2]
[398047418,1765337439483,-505.63104948,0.00015694,2]
[398047419,1765337439493,-500.0,0.00015694,2]
[398047420,1765337439506,-500.0,0.00015694,2]
[398047421,1765337439515,-500.0,0.00015694,2]
[398047422,1765337439524,-529.1,0.00015694,2]
[398047423,1765337439534,-500.0,0.00015694,2]
[398047424,1765337439544,-500.0,0.00015694,2]
[398047425,1765337439554,-508.77240063,0.00015694,2]
[398047426,1765337439563,-500.0,0.00015694,2]
[398047427,1765337439572,-500.0,0.00015694,2]
[398047428,1765337439581,-500.0,0.00015694,2]
[398047429,1765337439590,-500.0,0.00015694,2]
[398047430,1765337439599,-500.0,0.00015694,2]
[398047431,1765337439608,-500.0,0.00015694,2]
[398047432,1765337439617,-500.0,0.00015694,2]
[398047433,1765337439626,-502.36148886,0.00015694,2]
[398047434,1765337439636,-500.0,0.00015694,2]
[398047435,1765337439645,-500.0,0.00015694,2]
[398047436,1765337439655,-500.0,0.00015694,2]
[398047437,1765337439665,-500.0,0.00015694,2]
[398047438,1765337439674,-500.0,0.00015694,2]
[398047439,1765337439685,-554.06,0.00015694,2]
[398047440,1765337439695,-500.0,0.00015694,2]
[398047441,1765337439704,-554.49,0.00015694,2]
[398047442,1765337439714,-500.0,0.00015694,2]
[398047443,1765337439724,-500.0,0.00015694,2]
[398047444,1765337439737,-500.0,0.00015694,2]
[398047445,1765337439747,-260.38635889,0.00015694,2]
[398047446,1765337439757,-500.0,0.00015694,2]
[398047447,1765337439767,-500.0,0.00015694,2]
[398047448,1765337439776,-500.0,0.00015694,2]
[398047449,1765337439786,-500.0,0.00015694,2]
[398047450,1765337439795,-500.0,0.00015694,2]
[398047451,1765337439805,-500.0,0.00015694,2]
[398047452,1765337439815,-602.08,0.00015694,2]
[398047453,1765337439824,-500.0,0.00015694,2]
[398047454,1765337439834,-500.0,0.00015694,2]
[398047455,1765337439843,-500.0,0.00015694,2]
[398047456,1765337439852,-500.0,0.00015694,2]
[398047457,1765337439861,-500.0,0.00015694,2]
[398047458,1765337439871,-528.44089551,0.00015694,2]
[398047459,1765337439880,-500.0,0.00015694,2]
[398047460,1765337439889,-500.0,0.00015694,2]
[398047461,1765337439899,-500.0,0.00015694,2]
[398047462,1765337439908,-500.0,0.00015694,2]
[398047463,1765337439917,-500.0,0.00015694,2]
[398047464,1765337439927,-500.0,0.00015694,2]
[398047465,1765337439937,-500.0,0.00015694,2]
[398047466,1765337439946,-500.0,0.00015694,2]
[398047467,1765337439956,-500.0,0.00015694,2]
[398047468,1765337439965,-500.0,0.00015694,2]
[398047469,1765337439974,-500.0,0.00015694,2]
[398047470,1765337439984,-500.0,0.00015694,2]
[398047471,1765337439993,-500.0,0.00015694,2]
[398047472,1765337440002,-502.92340144,0.00015694,2]
[398047473,1765337440012,-500.0,0.00015694,2]
[398047474,1765337440022,-500.0,0.00015694,2]
[398047475,1765337440032,-500.0,0.00015694,2]
[398047476,1765337440042,-500.0,0.00015694,2]
[398047477,1765337440051,-500.0,0.00015694,2]
[398047478,1765337440061,-500.0,0.00015694,2]
[398047479,1765337440070,-500.0,0.00015694,2]
[398047480,1765337440079,-500.0,0.00015694,2]
[398047481,1765337440088,-500.0,0.00015694,2]
[398047482,1765337440098,-477.08062673,0.00015694,2]
[398047483,1765337440107,-500.0,0.00015694,2]
[398047484,1765337440117,-500.0,0.00015694,2]
[398047485,1765337440127,-500.0,0.00015694,2]
[398047486,1765337440136,-500.0,0.00015694,2]
[398047487,1765337440145,-822.63,0.00015694,2]
[398047488,1765337440154,-500.0,0.00015694,2]
[398047489,1765337440165,-500.0,0.00015694,2]
[398047490,1765337440175,-500.0,0.00015694,2]
[398047491,1765337440184,-612.64,0.00015694,2]
[398047492,1765337440193,-500.0,0.00015694,2]
[398047493,1765337440204,-500.0,0.00015694,2]
[398047494,1765337440213,-500.0,0.00015694,2]
[398047495,1765337440223,-500.0,0.00015694,2]
[398047496,1765337440232,-500.0,0.00015694,2]
[398047497,1765337440241,-500.0,0.00015694,2]
[398047498,1765337440251,-500.0,0.00015694,2]
[398047499,1765337440260,-500.0,0.00015694,2]
[398047500,1765337440269,-500.0,0.00015694,2]
[398047501,1765337440279,-500.0,0.00015694,2]
[398047502,1765337440290,-500.0,0.00015694,2]
[398047503,1765337440299,-500.0,0.00015694,2]
[398047504,1765337440308,-500.0,0.00015694,2]
[398047505,1765337440318,-500.0,0.00015694,2]
[398047506,1765337440327,-744.16,0.00015694,2]
[398047507,1765337440337,-503.18608497,0.00015694,2]
[398047508,1765337440346,-500.0,0.00015694,2]
[398047509,1765337440355,-596.04634561,0.00015694,2]
[398047510,1765337440365,-572.91,0.00015694,2]
[398047511,1765337440374,-500.0,0.00015694,2]
[398047512,1765337440384,-500.0,0.00015694,2]
[398047513,1765337440393,-500.0,0.00015694,2]
[398047514,1765337440404,-1000.0,0.00015694,2]
[398047515,1765337440414,-500.0,0.00015694,2]
[398047516,1765337440424,-778.1,0.00015694,2]
[398047517,1765337440433,-500.0,0.00015694,2]
[398047518,1765337440443,-495.0944424,0.00015694,2]
[398047519,1765337440452,-500.0,0.00015694,2]
[398047520,1765337440461,-500.0,0.00015694,2]
[398047521,1765337440471,-500.0,0.00015694,2]
[398047522,1765337440481,-500.0,0.00015694,2]
[398047523,1765337440491,-500.0,0.00015694,2]
[398047524,1765337440500,-500.0,0.00015694,2]
[398047525,1765337440510,-546.77,0.00015694,2]
[398047526,1765337440520,-500.0,0.00015694,2]
[398047527,1765337440529,-500.0,0.00015694,2]
[398047528,1765337440539,-500.0,0.00015694,2]
[398047529,1765337440548,-500.0,0.00015694,2]
[398047530,1765337440558,-334.32906232,0.00015694,2]
[398047531,1765337440567,-282.92015657,0.00015694,2]
[398047532,1765337440576,-500.0,0.00015694,2]
[398047533,1765337440586,-545.37,0.00015694,2]
[398047534,1765337440596,-500.0,0.00015694,2]
[398047535,1765337440606,-500.0,0.00015694,2]
[398047536,1765337440617,-500.0,0.00015694,2]
[398047537,1765337440627,-688.34,0.00015694,2]
[398047538,1765337440636,-507.49718427,0.00015694,2]
[398047539,1765337440645,-500.0,0.00015694,2]
[398047540,1765337440654,-500.0,0.00015694,2]
[398047541,1765337440663,-500.0,0.00015694,2]
[398047542,1765337440672,-588.02,0.00015694,2]
[398047543,1765337440681,-500.0,0.00015694,2]
[398047544,1765337440690,-500.0,0.00015694,2]
[398047545,1765337440699,-606.18,0.00015694,2]
[398047546,1765337440708,-500.0,0.00015694,2]
[398047547,1765337440718,-500.0,0.00015694,2]
[398047548,1765337440731,-500.0,0.00015694,2]
[398047549,1765337440739,-500.0,0.00015694,2]
[398047550,1765337440750,-500.0,0.00015694,2]
[398047551,1765337440759,-500.0,0.00015694,2]
[398047552,1765337440768,-500.0,0.00015694,2]
[398047553,1765337440777,-456.03399781,0.00015694,2]
[398047554,1765337440786,-500.0,0.00015694,2]
[398047555,1765337440797,-500.0,0.00015694,2]
[398047556,1765337440806,-508.04164913,0.00015694,2]
[398047557,1765337440816,-500.0,0.00015694,2]
[398047558,1765337440825,-500.0,0.00015694,2]
[398047559,1765337440834,-509.69188851,0.00015694,2]
[398047560,1765337440844,-533.77,0.00015694,2]
[398047561,1765337440853,-500.0,0.00015694,2]
[398047563,1765337440863,-504.12097961,0.00015694,2]
[398047564,1765337440873,-500.0,0.00015694,2]
[398047565,1765337440883,-500.0,0.00015694,2]
[398047566,1765337440892,-500.0,0.00015694,2]
[398047567,1765337440902,-500.0,0.00015694,2]
[398047568,1765337440911,-500.0,0.00015694,2]
[398047569,1765337440922,-500.0,0.00015694,2]
[398047570,1765337440931,-500.0,0.00015694,2]
[398047571,1765337440940,-500.0,0.00015694,2]
[398047572,1765337440950,-500.0,0.00015694,2]
[398047573,1765337440960,-538.76,0.00015694,2]
[398047574,1765337440970,-500.0,0.00015694,2]
[398047575,1765337440980,-500.0,0.00015694,2]
[398047576,1765337440990,-500.0,0.00015694,2]
[398047577,1765337440999,-570.9646165,0.00015694,2]
[398047578,1765337441009,-500.0,0.00015694,2]
[398047579,1765337441018,-500.0,0.00015694,2]
[398047580,1765337441027,-679.16,0.00015694,2]
[398047581,1765337441036,-500.0,0.00015694,2]
[398047582,1765337441045,-500.0,0.00015694,2]
[398047583,1765337441054,-500.0,0.00015694,2]
[398047584,1765337441063,-771.2,0.00015694,2]
[398047585,1765337441072,-500.0,0.00015694,2]
[398047586,1765337441082,-703.77,0.00015694,2]
[398047587,1765337441091,-558.05,0.00015694,2]
[398047588,1765337441100,-614.29,0.00015694,2]
[398047589,1765337441109,-500.0,0.00015694,2]
[398047590,1765337441119,-500.0,0.00015694,2]
[398047591,1765337441129,-500.0,0.00015694,2]
[398047592,1765337441138,-500.0,0.00015694,2]
[398047593,1765337441148,-500.0,0.00015694,2]
[398047594,1765337441158,-500.0,0.00015694,2]
[398047595,1765337441166,-563.95,0.00015694,2]
[398047596,1765337441175,-207.68380987,0.00015694,2]
[398047597,1765337441184,-500.0,0.00015694,2]
[398047598,1765337441194,-500.0,0.00015694,2]
[398047599,1765337441203,-500.0,0.00015694,2]
[398047600,1765337441212,-373.77837332,0.00015694,2]
[398047601,1765337441221,-500.0,0.00015694,2]
[398047602,1765337441231,-500.0,0.00015694,2]
[398047603,1765337441240,-471.80975901,0.00015694,2]
[398047604,1765337441250,-740.2,0.00015694,2]
[398047605,1765337441259,-592.15,0.00015694,2]
[398047606,1765337441268,-500.0,0.00015694,2]
[398047607,1765337441277,-500.0,0.00015694,2]
[398047608,1765337441287,-500.0,0.00015694,2]
[398047609,1765337441296,-500.0,0.00015694,2]
[398047610,1765337441305,-500.0,0.00015694,2]
[398047611,1765337441314,-417.35201436,0.00015694,2]
[398047612,1765337441324,-500.0,0.00015694,2]
[398047613,1765337441333,-500.0,0.00015694,2]
[398047614,1765337441343,-500.0,0.00015694,2]
[398047615,1765337441353,-500.0,0.00015694,2]
[398047616,1765337441363,-500.0,0.00015694,2]
[398047617,1765337441372,-506.85024119,0.00015694,2]
[398047618,1765337441382,-500.0,0.00015694,2]
[398047619,1765337441392,-500.0,0.00015694,2]
[398047620,1765337441401,-500.0,0.00015694,2]
[398047621,1765337441411,-568.29,0.00015694,2]
[398047622,1765337441420,-500.0,0.00015694,2]
[398047623,1765337441429,-500.0,0.00015694,2]
[398047624,1765337441439,-500.0,0.00015694,2]
[398047625,1765337441449,-500.0,0.00015694,2]
[398047626,1765337441460,-500.0,0.00015694,2]
[398047627,1765337441470,-500.0,0.00015694,2]
[398047628,1765337441479,-500.0,0.00015694,2]
[398047629,1765337441489,-500.0,0.00015694,2]
[398047630,1765337441499,-500.0,0.00015694,2]
[398047631,1765337441508,-500.0,0.00015694,2]
[398047632,1765337441517,-500.0,0.00015694,2]
[398047633,1765337441527,-500.0,0.00015694,2]
[398047634,1765337441536,-500.0,0.00015694,2]
[398047635,1765337441546,-500.0,0.00015694,2]
[398047636,1765337441556,-799.34,0.00015694,2]
[398047637,1765337441565,-500.0,0.00015694,2]
[398047638,1765337441575,-500.0,0.00015694,2]
[398047639,1765337441585,-500.0,0.00015694,2]
[398047640,1765337441594,-500.0,0.00015694,2]
[398047641,1765337441603,-500.0,0.00015694,2]
[398047642,1765337441613,-500.0,0.00015694,2]
[398047643,1765337441622,-500.0,0.00015694,2]
[398047644,1765337441632,-500.0,0.00015694,2]
[398047645,1765337441641,-500.0,0.00015694,2]
[398047646,1765337441650,-500.0,0.00015694,2]
[398047647,1765337441659,-693.61,0.00015694,2]
[398047648,1765337441669,-500.0,0.00015694,2]
[398047649,1765337441678,-158.93757324,0.00015694,2]
[398047650,1765337441688,-500.0,0.00015694,2]
[398047651,1765337441697,-508.87169174,0.00015694,2]
[398047652,1765337441706,-502.62670927,0.00015694,2]
[398047653,1765337441716,-637.07,0.00015694,2]
[398047654,1765337441729,-500.0,0.00015694,2]
[398047655,1765337441744,-500.0,0.00015694,2]
[398047656,1765337441754,-500.0,0.00015694,2]
[398047657,1765337441764,-500.0,0.00015694,2]
[398047658,1765337441773,-500.0,0.00015694,2]
[398047659,1765337441785,-500.0,0.00015694,2]
[398047660,1765337441795,-475.67717401,0.00015694,2]
[398047661,1765337441806,-500.0,0.00015694,2]
[398047662,1765337441815,-897.38,0.00015694,2]
[398047663,1765337441824,-500.0,0.00015694,2]
[398047664,1765337441833,-700.42,0.00015694,2]
[398047665,1765337441842,-741.44,0.00015694,2]
[398047666,1765337441852,-500.0,0.00015694,2]
[398047667,1765337441862,-500.0,0.00015694,2]
[398047668,1765337441871,-728.31,0.00015694,2]
[398047669,1765337441880,-500.0,0.00015694,2]
[398047670,1765337441890,-500.0,0.00015694,2]
[398047671,1765337441899,-505.97993374,0.00015694,2]
[398047672,1765337441908,-500.0,0.00015694,2]
[398047673,1765337441917,-500.0,0.00015694,2]
[398047674,1765337441927,-500.0,0.00015694,2]
[398047675,1765337441936,-500.0,0.00015694,2]
[398047676,1765337441946,-814.31,0.00015694,2]
[398047677,1765337441955,-529.95,0.00015694,2]
[398047678,1765337441965,-798.33,0.00015694,2]
[398047679,1765337441974,-342.04387377,0.00015694,2]
[398047680,1765337441984,-500.0,0.00015694,2]
[398047681,1765337441993,-500.0,0.00015694,2]
[398047682,1765337442003,-504.16100079,0.00015694,2]
[398047683,1765337442012,-500.0,0.00015694,2]
[398047684,1765337442022,-500.0,0.00015694,2]
[398047685,1765337442031,-500.0,0.00015694,2]
[398047686,1765337442041,-500.0,0.00015694,2]
[398047687,1765337442050,-501.89932113,0.00015694,2]
[398047688,1765337442060,-507.91617787,0.00015694,2]
[398047689,1765337442069,-500.0,0.00015694,2]
[398047690,1765337442078,-500.0,0.00015694,2]
[398047691,1765337442088,-500.0,0.00015694,2]
[398047692,1765337442097,-500.0,0.00015694,2]
[398047693,1765337442106,-500.0,0.00015694,2]
[398047694,1765337442115,-564.25,0.00015694,2]
[398047695,1765337442124,-500.0,0.00015694,2]
[398047696,1765337442133,-500.0,0.00015694,2]
[398047697,1765337442143,-504.56952672,0.00015694,2]